[Event "84th Armenian-HL-ch 2024"]
[Site "Yerevan"]
[Date "2024.01.19"]
[Round "8.3"]
[White "Ter-Sahakyan, Samvel"]
[Black "Andriasian, Zaven"]
[Result "1-0"]
[ECO "B90"]
[WhiteElo "2649"]
[BlackElo "2581"]
[Annotator "TA"]
[PlyCount "71"]
[EventDate "2024.01.11"]
[EventType "tourn"]
[EventCountry "ARM"]
[SourceTitle "playchess.com"]
[Source "ChessBase"]
[SourceQuality "1"]
[TimeControl "40/5400+30:1800+30"]

{[%evp 20,71,19,26,15,23,36,33,37,37,63,62,66,63,84,93,92,90,119,106,121,134,124,105,144,141,170,137,181,168,212,120,149,170,156,140,285,245,262,277,276,133,394,394,394,387,385,358,529,512,608,599,29990,29991]} 1. e4 {[%emt 0:00:12]} c5 {[%emt 0:00:08]} 2. Nf3 {[%emt 0:00:08]} d6 {[%emt 0:00:09]} 3. d4 {[%emt 0:00:05]} cxd4 {[%emt 0:00:06]} 4. Nxd4 {[%emt 0:00:04]} Nf6 {[%emt 0:00:11]} 5. Nc3 {[%emt 0:00:04]} a6 {[%emt 0:00:08]} 6. f3 {[%emt 0:00:08]} e5 {[%emt 0:00:25]} 7. Nb3 {[%emt 0:01:40]} Be7 {[%emt 0:00:10]} 8. Be3 {[%emt 0:00:10]} Be6 {[%emt 0:00:13]} 9. Qd2 {[%emt 0:00:07]} h5 {[%emt 0:00:08]} 10. Nd5 {[%emt 0:05:46]} Nxd5 {[%emt 0:00:14]} 11. exd5 {[%emt 0:00:06]} Bf5 {[%emt 0:00:07] B90: Sicilian Najdorf: Unusual White 6th moves, 6 Be3 Ng4 and 6 Be3 e5.} 12. Be2 {[%emt 0:00:35]} Nd7 {[%emt 0:01:56] 12...a5 might become the main line.} 13. O-O {[%emt 0:02:18]} Bg6 {[%emt 0:06:35] White is slightly better.} 14. Na5 {[%emt 0:05:11]} Qc7 {[%emt 0:03:55]} 15. c4 {[%emt 0:01:50]} O-O {[%emt 0:02:57]} 16. b4 {[%emt 0:00:33][%cal Oc4c5]} b6 {[%emt 0:23:27]} 17. Nc6 {[%emt 0:01:50]} Bf6 {[%emt 0:00:16]} 18. Rac1 {[%emt 0:10:41]} Rfe8 {[%emt 0:06:27]} 19. Bd1 {[%emt 0:06:50]} a5 {[%emt 0:06:24]} 20. bxa5 {[%emt 0:05:52]} bxa5 {[%emt 0:00:15] [#]} 21. Ba4 $1 {[%emt 0:00:58] [#]} h4 $146 {[%emt 0:11:03]} ({Predecessor:} 21... Bf5 22. Bb5 Rec8 23. a4 Kh7 24. g4 Bg6 25. h3 Nb8 26. c5 dxc5 27. d6 Qb7 28. Nxb8 Raxb8 {1-0 Stany,G (2502)-Raghunandan,K (2394) Gujarat op 1st 2018 (4)}) 22. h3 {[%emt 0:06:36]} Kh7 {[%emt 0:02:44]} 23. Kh1 {[%emt 0:06:18]} Bf5 {[%emt 0:04:16]} 24. c5 {[%emt 0:13:26]} Rec8 {[%emt 0:16:00]} 25. Rc4 {[%emt 0:05:09]} (25. Bg5 $18) 25... dxc5 $16 {[%emt 0:02:17]} 26. d6 {[%emt 0:01:40]} (26. Bxc5 Nxc5 27. Bc2 (27. Rxc5 Qd6 $14) 27... Bxc2 28. Qxc2+ g6 29. Rxc5 Qd6 $16) 26... Qb7 {[%emt 0:00:43]} 27. Ne7 $36 {[%emt 0:17:49][%mdl 2048] White is on the roll. White has more active pieces.} (27. Bxc5 $2 Rxc6 28. Bxc6 Qxc6 $19) (27. Nxa5 $6 Qa6 28. Bg5 (28. Bxd7 $2 Bxd7 29. Qd3+ Kg8 $19) 28... Nb6 29. Bxf6 (29. Rxh4+ Kg6 $17) 29... Nxc4 $11) 27... Be6 {[%emt 0:00:24]} (27... Nb6 $16 28. Rxh4+ Bxh4 29. Nxf5 Nxa4 30. Nxh4 Qb5) 28. Nxc8 {[%emt 0:01:43]} Bxc4 {[%emt 0:00:23]} 29. Qc2+ {[%emt 0:00:43]} Kg8 {[%emt 0:01:56] [#]} 30. Rb1 {[%emt 0:00:30]} (30. Qxc4 Rxc8 31. Rd1 Nf8 $16) (30. Ne7+ $1 $18 Bxe7 31. Rb1 (31. Qxc4 Nb6 $14)) 30... Qa6 $2 {[%emt 0:04:19][%mdl 8192] Loses the game.} (30... Qxc8 $16 31. Qxc4 Nf8) 31. Bxd7 $18 {[%emt 0:00:10]} Bd3 {[%emt 0:00:11] [#]} 32. Qxc5 {[%emt 0:01:47]} Bxb1 {[%emt 0:01:19]} 33. Ne7+ {[%emt 0:00:04]} Bxe7 {[%emt 0:05:35]} (33... Kh7 $142) 34. dxe7 {[%emt 0:00:05]} Bxa2 {[%emt 0:00:11]} 35. Qxe5 {[%emt 0:01:52]} ({Weaker is} 35. e8=B Qf1+ 36. Bg1 (36. Kh2 Qe1 $16) 36... Qe1 $16) (35. e8=N Qg6 $14) 35... Be6 {[%emt 0:01:35] [#]} 36. Bd4 $1 {[%emt 0:01:09] A cool game by Ter-Sahakyan.   Weighted Error Value: White=0.16 (very precise) /Black=0.76} 1-0

[Event "84th Armenian-HL-ch 2024"]
[Site "Yerevan"]
[Date "2024.01.19"]
[Round "8.4"]
[White "Chaqryan, Erik"]
[Black "Gharibyan, Mamikon"]
[Result "0-1"]
[ECO "D02"]
[WhiteElo "2308"]
[BlackElo "2504"]
[Annotator "TA"]
[PlyCount "86"]
[EventDate "2024.01.11"]
[EventType "tourn"]
[EventCountry "ARM"]
[SourceTitle "playchess.com"]
[Source "ChessBase"]
[SourceQuality "1"]
[TimeControl "40/5400+30:1800+30"]

{[%evp 9,86,2,23,13,14,16,24,17,24,17,22,26,27,24,25,21,22,23,28,12,22,37,27,33,48,48,47,48,47,24,30,21,29,0,0,0,0,0,0,0,0,-78,-62,-55,0,0,28,0,25,-102,-102,-205,-207,-235,-216,-218,-224,-351,-331,-487,-475,-426,-242,-571,-574,-553,-562,-564,-562,-540,-463,-463,-460,-552,-550,-516,-446,-468,-463]} 1. Nf3 {[%emt 0:00:17]} d5 {[%emt 0:01:27]} 2. g3 {[%emt 0:00:09]} Bg4 {[%emt 0:01:56]} 3. Bg2 {[%emt 0:02:49]} Nd7 {[%emt 0:03:42]} 4. d4 {[%emt 0:01:57]} c6 {[%emt 0:00:59]} 5. h3 {[%emt 0:03:43]} Bf5 {[%emt 0:13:37] [#]} 6. c4 $1 {[%emt 0:09:11] D02: 1 d4 d5 2 Nf3 sidelines, including 2...Nf6 3 g3 and 2...Nf6 3 Bf4.} e6 {[%emt 0:01:29]} 7. Nc3 {[%emt 0:00:43]} Ngf6 {[%emt 0:06:54]} 8. Qb3 {[%emt 0:04:31] White has an edge.} Qb6 {[%emt 0:08:33]} 9. c5 {[%emt 0:00:11]} Qxb3 {[%emt 0:01:09]} 10. axb3 {[%emt 0:00:06] [#]} Be7 $146 {[%emt 0:00:30]} ({Predecessor:} 10... a6 11. b4 Ne4 12. b5 Nxc3 13. bxc6 bxc6 14. bxc3 Be7 15. Bf4 O-O 16. O-O f6 {1-0 Mirski,S (2187)-Bilczewski,K (2125) Krakow op-A 34th 2023 (5)}) 11. b4 {[%emt 0:05:53]} O-O {[%emt 0:02:34]} 12. g4 {[%emt 0:04:54]} Bc2 {[%emt 0:07:56]} 13. Bf4 {[%emt 0:03:36]} a6 {[%emt 0:06:36]} 14. O-O {[%emt 0:03:52]} h5 {[%emt 0:03:54]} 15. g5 {[%emt 0:04:11]} Nh7 {[%emt 0:01:31] Black is weak on the dark squares} 16. h4 {[%emt 0:05:57]} f6 {[%emt 0:04:51]} 17. Bh3 {[%emt 0:04:40]} Kf7 {[%emt 0:02:16]} 18. Kh2 {[%emt 0:03:35]} Rfe8 {[%emt 0:10:54]} 19. Rac1 {[%emt 0:05:01]} Bf5 {[%emt 0:06:23]} 20. Rg1 {[%emt 0:03:56] Strongly threatening Bxf5.} Ndf8 {[%emt 0:01:47]} 21. gxf6 {[%emt 0:02:07]} (21. Bxf5 {simplifies} exf5 22. e3 Ng6 23. Ne2) 21... gxf6 {[%emt 0:03:14]} 22. Bxf5 {[%emt 0:00:15]} exf5 {[%emt 0:00:04]} 23. e3 {[%emt 0:00:10]} Ne6 {[%emt 0:02:31]} 24. Ne2 {[%emt 0:00:12]} Nhf8 $1 {[%emt 0:02:18]} 25. Kh3 {[%emt 0:04:17] [#]} (25. Ne1 $11) 25... Ng6 $1 $17 {[%emt 0:00:13]} 26. Bh2 {[%emt 0:00:05]} Rg8 {[%emt 0:00:42]} ({Black should play} 26... Bf8 $1 $15) 27. Ne1 $11 {[%emt 0:04:20]} Bf8 {[%emt 0:04:10][%cal Of5f4]} (27... f4 $5) 28. Nd3 {[%emt 0:03:19]} Bh6 {[%emt 0:00:04][%cal Of5f4]} 29. Rg3 {[%emt 0:03:01]} (29. Bd6 $11) 29... f4 $17 {[%emt 0:00:54]} 30. exf4 {[%emt 0:12:00] [#]} (30. Rf3 $2 Nxh4 31. Rxf4 (31. Kxh4 Rg4+ 32. Kxh5 Rg5+ 33. Kh4 Rh8) 31... Bxf4 32. Bxf4 Nf3 $19) (30. Rxg6 $17 Kxg6 31. Bxf4) 30... Ng7 $1 $19 {[%emt 0:00:52]} (30... Nexf4+ 31. Ndxf4 Bxf4 32. Rxg6 Bxc1 33. Rxg8 Rxg8 34. Nxc1 $14) 31. Rgg1 {[%emt 0:00:53]} Nf5 {[%emt 0:00:18][%mdl 1024] Black has strong compensation.} 32. Bg3 {[%emt 0:00:04]} Rae8 {[%emt 0:00:20]} 33. Rc2 {[%emt 0:06:17]} (33. Rge1 {is a better defense.}) 33... Re4 {[%emt 0:00:17]} 34. f3 {[%emt 0:00:43]} (34. Re1 {was worth a try.}) 34... Re3 {[%emt 0:00:24]} ({Worse is} 34... Nxd4 35. fxe4 Nxc2 36. exd5 $15) 35. Ndc1 {[%emt 0:00:17]} Rge8 {[%emt 0:01:58]} (35... Rxf3 $2 {is the wrong capture.} 36. Rc3 Ngxh4 37. Rxf3 Nxf3 38. Rf1 $19) (35... Bxf4 $142 36. Bxf4 Nxf4+ 37. Kh2 Rxf3 38. Rxg8 Rf2+ 39. Kg1 Nh3+ 40. Kh1 Kxg8) 36. Rg2 {[%emt 0:00:32]} (36. Rf1 {was the crucial defense.}) 36... Rxf3 {[%emt 0:00:21][%cal Oe8e3] Hoping for ...Ree3! Black is clearly winning.} 37. Rc3 {[%emt 0:00:03]} Ngxh4 {[%emt 0:00:49][%cal Bg6h4,Bh4f3,Bf3d2,Bd2c4,Bc4e3,Be3c2][%mdl 32] aiming for ...Rxc3.} 38. Rxf3 {[%emt 0:01:06]} Nxf3 {[%emt 0:00:04]} 39. Bf2 {[%emt 0:00:18]} Nd2 {[%emt 0:00:57][%cal Od2b3]} 40. Bg1 {[%emt 0:00:00]} Nc4 {[%emt 0:00:00]} 41. Nd3 {[%emt 0:02:06]} Nce3 {[%emt 0:04:40]} 42. Rf2 {[%emt 0:02:31]} Re4 {[%emt 0:04:16]} 43. Rf3 {[%emt 0:00:09]} Nc2 {[%emt 0:01:55] Weighted Error Value: White=0.36/Black=0.17 (very precise)} ({Not} 43... Nxd4 44. Nxd4 Rxd4 45. Rxe3 $16) 0-1

[Event "84th Armenian-HL-ch 2024"]
[Site "Yerevan"]
[Date "2024.01.19"]
[Round "8.5"]
[White "Tiraturyan, David"]
[Black "Hovhannisyan, Robert"]
[Result "0-1"]
[ECO "A20"]
[WhiteElo "2258"]
[BlackElo "2611"]
[Annotator "TA"]
[PlyCount "150"]
[EventDate "2024.01.11"]
[EventType "tourn"]
[EventCountry "ARM"]
[SourceTitle "playchess.com"]
[Source "ChessBase"]
[SourceQuality "1"]
[TimeControl "40/5400+30:1800+30"]

{[%evp 9,150,0,1,8,0,-15,0,0,0,0,0,-4,8,-25,11,3,24,15,12,0,0,0,0,0,0,0,0,0,0,0,7,-25,0,0,20,22,19,0,0,-16,-15,-29,-36,-56,-54,-54,-30,-30,-26,-26,-19,-11,-15,-53,-62,-55,-69,-54,-67,-172,-163,-158,-152,-158,-157,-284,-265,-339,-178,-192,-158,-243,-230,-194,-155,-139,-155,-139,-147,-147,0,0,0,0,0,0,0,0,0,0,0,0,0,0,-16,-16,0,0,0,0,0,0,0,0,0,0,0,0,-8,-15,-37,-12837,-12834,-12841,-12841,-12841,0,-12841,-12841,-12841,-12838,-12845,-12846,-12847,-12847,-12848,-12848,-12849,-12849,-12850,-12848,-12850,-12849,-12850,-12850,-12850,-12848,-12850,-12849,-29997,-29998,-29998,-29999]} 1. c4 {[%emt 0:00:11]} e5 {[%emt 0:00:16]} 2. d3 {[%emt 0:00:24]} Bb4+ {[%emt 0:02:25]} 3. Nd2 {[%emt 0:01:01]} c5 {[%emt 0:01:18]} 4. g3 {[%emt 0:04:15]} Ne7 {[%emt 0:01:46]} 5. Bg2 {[%emt 0:00:38]} Nbc6 {[%emt 0:01:11]} 6. Ngf3 {[%emt 0:00:43] A20: English Opening: 1...e5.} O-O {[%emt 0:01:11]} 7. O-O {[%emt 0:00:04]} Bxd2 {[%emt 0:01:55]} 8. Bxd2 {[%emt 0:02:57] The position is equal.} d6 {[%emt 0:00:09]} 9. Bc3 {[%emt 0:19:55] [#]} f6 $146 {[%emt 0:05:22]} ({Predecessor:} 9... f5 10. Rb1 a5 11. a3 a4 12. b4 axb3 13. Qxb3 f4 14. e3 Bf5 15. Bb2 fxe3 16. fxe3 {1-0 Pachman,L-Opocensky,K CSR-ch30 Kosice 1961 (9)}) 10. Rb1 {[%emt 0:17:49]} b6 {[%emt 0:12:56]} 11. b4 {[%emt 0:02:32]} Rb8 {[%emt 0:04:31]} 12. a3 {[%emt 0:05:11]} Be6 {[%emt 0:03:36]} 13. Nd2 {[%emt 0:08:03]} Qd7 {[%emt 0:02:33]} 14. b5 {[%emt 0:01:45]} Nd8 {[%emt 0:07:59]} 15. e4 {[%emt 0:01:27]} Bh3 {[%emt 0:06:17]} 16. f4 {[%emt 0:01:34]} Bxg2 {[%emt 0:01:42]} 17. Kxg2 {[%emt 0:00:04]} exf4 {[%emt 0:03:04]} 18. Rxf4 {[%emt 0:00:55]} Ne6 {[%emt 0:01:43]} 19. Rf1 {[%emt 0:00:34]} Ng6 {[%emt 0:02:10]} 20. Nf3 {[%emt 0:02:07]} (20. a4 {looks sharper.} Ng5 21. Nf3 Ne5 22. Nh4) 20... Rbe8 {[%emt 0:01:39]} 21. Rb2 {[%emt 0:01:08]} Rf7 {[%emt 0:04:04]} 22. Rbf2 {[%emt 0:01:19]} Ref8 {[%emt 0:02:07]} 23. Ne1 {[%emt 0:03:05]} (23. Nh4 {simplifies} a6 24. Nxg6 hxg6 25. a4) 23... Ng5 {[%emt 0:03:14]} 24. Qh5 {[%emt 0:03:18]} Ne5 {[%emt 0:00:13]} 25. Bd2 {[%emt 0:01:07]} h6 {[%emt 0:01:53]} 26. Bxg5 {[%emt 0:01:08]} hxg5 {[%emt 0:02:33]} (26... fxg5 {simplifies} 27. Rxf7 Rxf7 28. Rxf7 Qxf7 29. Qe2 g4) 27. Qe2 {[%emt 0:00:05]} g6 {[%emt 0:01:21]} 28. h3 {[%emt 0:03:30] Against Ng4} Rh7 {[%emt 0:02:00]} 29. Rh1 {[%emt 0:04:11]} Kg7 {[%emt 0:02:52]} 30. Nf3 {[%emt 0:00:29]} Nf7 {[%emt 0:03:34]} 31. Qb2 {[%emt 0:00:07]} g4 $1 $36 {[%emt 0:01:26][%mdl 2048] White is under pressure.} 32. hxg4 {[%emt 0:01:44]} Rxh1 {[%emt 0:00:05]} 33. Kxh1 {[%emt 0:00:02]} Qxg4 {[%emt 0:00:44]} 34. Nh2 {[%emt 0:00:26]} (34. Kg2 $1 $15) 34... Qe6 $1 $19 {[%emt 0:01:12]} 35. Kg1 {[%emt 0:00:15]} Ne5 {[%emt 0:00:38]} 36. Qe2 {[%emt 0:00:05]} Rh8 {[%emt 0:01:33]} 37. Qf1 {[%emt 0:00:04]} (37. Nf1 $17) 37... Rh3 {[%emt 0:02:43]} 38. Rg2 {[%emt 0:00:12]} Rh5 {[%emt 0:01:49]} (38... Qg8 $142 {Threatens to win with ...Qh8.} 39. Qf4 Qe6) 39. Nf3 {[%emt 0:01:34]} Qh3 {[%emt 0:03:19]} 40. Nxe5 {[%emt 0:00:00]} (40. Nh2 $17) 40... dxe5 $17 {[%emt 0:00:00][%mdl 4096] Endgame KQR-KQR} 41. Kf2 {[%emt 0:05:10]} Qd7 {[%emt 0:06:29]} 42. Ke2 {[%emt 0:01:24]} Qd4 $1 {[%emt 0:04:00]} 43. Qc1 {[%emt 0:00:33]} f5 $1 {[%emt 0:03:06] Black is more active.} 44. exf5 {[%emt 0:00:12]} Rxf5 {[%emt 0:01:11]} (44... Qg4+ $17 45. Kd2 gxf5) 45. Qe3 $1 $11 {[%emt 0:02:09]} Qa1 {[%emt 0:05:35]} 46. Rh2 {[%emt 0:04:03]} Qb2+ {[%emt 0:03:02]} 47. Qd2 {[%emt 0:00:05]} Qxd2+ {[%emt 0:00:04]} 48. Kxd2 {[%emt 0:00:04] KR-KR} Rf3 {[%emt 0:00:43]} 49. Re2 {[%emt 0:00:52]} Kf6 {[%emt 0:01:34]} 50. Re3 {[%emt 0:00:04]} Rf1 {[%emt 0:00:21]} 51. Kc2 {[%emt 0:16:38]} Rf2+ {[%emt 0:01:35]} 52. Kc3 {[%emt 0:00:03]} Kf5 {[%emt 0:01:42]} (52... g5 $5 {[%cal Rg5g4]}) 53. a4 {[%emt 0:00:33]} g5 {[%emt 0:00:50] White must now prevent ...g4.} 54. g4+ {[%emt 0:01:43][%mdl 64] Deflection} Kxg4 {[%emt 0:00:08]} 55. Rxe5 {[%emt 0:00:03] And now Re7 would win.} Rf7 {[%emt 0:03:05] Wards off Re7. Hoping for ...Kf4.} 56. a5 {[%emt 0:00:11]} Kf4 {[%emt 0:00:42]} 57. Re6 {[%emt 0:00:49]} bxa5 {[%emt 0:00:57]} 58. d4 $1 {[%emt 0:01:06]} cxd4+ {[%emt 0:00:45]} 59. Kxd4 {[%emt 0:00:04]} g4 {[%emt 0:00:21] Strongly threatening ...g3.} 60. Ra6 $2 {[%emt 0:02:41][%mdl 8192] White is on the road to losing.} (60. c5 $15) 60... g3 $19 {[%emt 0:00:33]} 61. Rxa5 {[%emt 0:00:04]} g2 {[%emt 0:00:40]} 62. Ra1 {[%emt 0:00:05] [#]} Kg3 $2 {[%emt 0:04:18]} ({Black should play} 62... Rd7+ $1 $19 63. Kc5 Rg7) 63. Kd5 $2 {[%emt 0:01:50][%mdl 8192]} (63. Rg1 $11) 63... Rf5+ {[%emt 0:05:13]} (63... Rf1 64. Rxa7 g1=Q 65. Rg7+ Kf3 66. Rxg1 Rxg1 67. c5 $11) 64. Kd6 {[%emt 0:08:59] [#]} a6 $1 {[%emt 0:00:35][%mdl 576] Promotion} 65. bxa6 {[%emt 0:00:23] [#]} (65. b6 Rf1) 65... Rf1 $1 {[%emt 0:00:33]} (65... Rf6+ 66. Kc7 Rf7+ 67. Kb8 $15) 66. Ra5 {[%emt 0:02:07]} Kh4 {[%emt 0:00:27]} (66... g1=B 67. a7 (67. c5 Rf6+ 68. Kd5 Rf5+ 69. Kc4 Rf4+ 70. Kd5 Rf5+ 71. Kc6 Rf6+ 72. Kb5 Rf5 $18) 67... Bxa7 68. Rxa7 $18) ({And not} 66... g1=Q 67. Rg5+ Kf2 68. Rxg1 Kxg1 69. a7 $11) 67. a7 {[%emt 0:00:03]} g1=Q {[%emt 0:02:43] ( -> ...Rf6+)} (67... g1=R 68. a8=Q (68. a8=R Rg6+ 69. Kc5 Rg5+ 70. Kb4 Rb1+ 71. Kc3 Rc1+ 72. Kb3 Rg3+ 73. Kb4 Rb1+ 74. Kc5 Rg5+ 75. Kd6 Rg6+ 76. Ke5 Re1+ 77. Kd4 Rd1+ 78. Ke5 Re1+ 79. Kf5 Rg5+ 80. Kf6 Rf1+ 81. Ke7 Re1+ 82. Kf6 Rf1+ 83. Ke7 Re1+ 84. Kf6 $14) 68... Rg6+ 69. Kd7 Rg7+ 70. Kc6 Rg6+ 71. Kb5 Rb1+ 72. Ka4 Ra1+ 73. Kb4 Rb6+ 74. Kc5) 68. a8=Q {[%emt 0:00:06] KQR-KQR} Qb6+ {[%emt 0:00:28]} 69. Ke7 {[%emt 0:01:04]} Qc7+ {[%emt 0:00:27]} 70. Ke6 {[%emt 0:00:16]} Re1+ {[%emt 0:00:22]} 71. Kd5 {[%emt 0:01:03]} Rd1+ {[%emt 0:00:20]} 72. Ke6 {[%emt 0:00:41]} Qd7+ {[%emt 0:00:33]} 73. Ke5 {[%emt 0:00:30]} Qd6+ {[%emt 0:00:17]} 74. Ke4 {[%emt 0:00:20]} Re1+ {[%emt 0:00:30]} 75. Kf5 {[%emt 0:00:09]} Qe6+ {[%emt 0:00:06] Weighted Error Value: White=0.25 (precise) /Black=0.11 (very precise)} 0-1

[Event "84th Armenian-HL-ch 2024"]
[Site "Yerevan"]
[Date "2024.01.20"]
[Round "9.1"]
[White "Andriasian, Zaven"]
[Black "Tiraturyan, David"]
[Result "1-0"]
[ECO "B60"]
[WhiteElo "2581"]
[BlackElo "2258"]
[Annotator "TA"]
[PlyCount "78"]
[EventDate "2024.01.11"]
[EventType "tourn"]
[EventCountry "ARM"]
[SourceTitle "playchess.com"]
[Source "ChessBase"]
[SourceQuality "1"]
[TimeControl "40/5400+30:1800+30"]

{[%evp 11,78,27,54,35,45,17,0,-22,0,0,0,2,14,-17,0,8,14,9,28,44,29,31,34,32,42,39,39,39,39,39,39,37,42,35,49,24,98,90,115,112,121,83,158,159,158,122,166,150,151,160,193,155,121,129,144,66,306,256,302,249,345,179,668,661,2900,1987,1743,1540,29985]} 1. e4 {[%emt 0:00:04]} c5 {[%emt 0:00:09]} 2. Nf3 {[%emt 0:00:09]} d6 {[%emt 0:00:19]} 3. d4 {[%emt 0:00:18]} cxd4 {[%emt 0:00:05]} 4. Nxd4 {[%emt 0:00:11]} Nf6 {[%emt 0:00:11]} 5. Nc3 {[%emt 0:00:10]} Nc6 {[%emt 0:00:16]} 6. Bg5 {[%emt 0:00:11]} Bd7 {[%emt 0:00:37]} 7. Qd3 {[%emt 0:04:05] B60: Sicilian: Richter-Rauzer: Unusual Black 6th moves and 6...Bd7 without 7 Qd2.} Rc8 {[%emt 0:02:26]} 8. Bxf6 $5 {[%emt 0:08:15][%mdl 4] Exploring less charted territory.} gxf6 {[%emt 0:00:10]} 9. f4 {[%emt 0:00:31] The position is equal.} Nxd4 {[%emt 0:01:31]} 10. Qxd4 {[%emt 0:00:08]} Qa5 {[%emt 0:00:03]} 11. O-O-O {[%emt 0:07:35][%cal Ba1d1,Bd1d4,Bd4a4,Ba4b4][%mdl 32]} Qc5 {[%emt 0:00:50] [#]} (11... Bh6 {is more complex.} 12. g3 O-O 13. Nd5 Rfe8) 12. Be2 $146 {[%emt 0:05:37]} ({Predecessor:} 12. Qd3 e6 13. Kb1 a6 14. g3 h5 15. h4 Rg8 16. Bh3 b5 17. Ne2 b4 18. Nd4 a5 {1-0 Sanal,V (2601)-Adly,A (2596) Wch Rapid Warsaw 2021 (7)}) 12... Qxd4 {[%emt 0:06:25]} (12... Bg7 $5 {[%cal Rc5d4]}) 13. Rxd4 {[%emt 0:00:14]} f5 {[%emt 0:00:07]} 14. exf5 {[%emt 0:02:29][%cal Of5f6]} Bxf5 {[%emt 0:04:01]} (14... Bg7 $5 {[%cal Rg7d4]} 15. Rb4 b6 $11) 15. Ra4 {[%emt 0:07:22]} a6 {[%emt 0:12:20]} 16. Rb4 {[%emt 0:00:11]} Bg7 {[%emt 0:07:30]} 17. Rxb7 {[%emt 0:07:26]} Bxc3 {[%emt 0:00:10]} 18. bxc3 {[%emt 0:00:10]} Rxc3 {[%emt 0:00:54]} 19. Rb8+ {[%emt 0:00:32]} (19. Bxa6 $2 Rxc2+ 20. Kd1 O-O $19) 19... Rc8 {[%emt 0:00:05]} 20. Rxc8+ {[%emt 0:00:15]} Bxc8 $14 {[%emt 0:00:03][%mdl 4096] Endgame KRB-KRB} 21. Kd2 {[%emt 0:00:15]} Kd8 {[%emt 0:02:21]} 22. Rb1 {[%emt 0:01:34]} Kc7 {[%emt 0:08:52] Repels Rb8} 23. a4 {[%emt 0:00:38][%cal Ba2a4,Ba4a5][%mdl 32]} Bb7 {[%emt 0:07:25]} (23... h5 $11 {remains equal.}) 24. g4 $16 {[%emt 0:05:49]} f6 {[%emt 0:07:12]} 25. a5 {[%emt 0:04:23] White is more active.} h6 {[%emt 0:00:25]} 26. Rb3 {[%emt 0:01:58]} e5 {[%emt 0:01:49]} ({Better is} 26... f5) 27. f5 $1 {[%emt 0:00:53]} Be4 {[%emt 0:04:03]} 28. Ke3 {[%emt 0:05:44]} (28. Bxa6 Ra8 $16) 28... Bb7 {[%emt 0:00:04]} 29. Kf2 {[%emt 0:00:59]} Be4 {[%emt 0:02:27]} 30. Rb4 {[%emt 0:03:23]} d5 {[%emt 0:03:33]} 31. c3 {[%emt 0:01:33]} (31. Bxa6 $6 h5 $16) 31... h5 {[%emt 0:00:27]} 32. gxh5 {[%emt 0:02:12][%cal Bg4h5,Bh5h6][%mdl 32] Black must now prevent Rb6.} Rg8 {[%emt 0:00:11] [#]} (32... Bxf5 $2 33. Rb6 $18 (33. Bxa6 Rxh5 34. h4 Be4 $11)) 33. Bf3 {[%emt 0:11:15] Dodges Rg2+} ({Resist} 33. Bxa6 Rg2+ 34. Ke3 Rxh2 $14) (33. h3 $1 $16) 33... Rg5 {[%emt 0:07:23] [#] Loses the game.} (33... Bxf3 $1 $14 34. Kxf3 Rg5) 34. h6 $1 $18 {[%emt 0:03:38]} (34. Bxe4 dxe4 35. h6 Rxf5+ 36. Ke3 Rh5 $11) 34... Bxf5 {[%emt 0:00:03]} (34... Rxf5 $2 35. Rxe4 dxe4 36. h7 $18) 35. Rh4 {[%emt 0:01:50][%cal Oh6h7] Threatens to win with h7!} ({Weaker is} 35. Bxd5 Rh5 $16) 35... Bh7 {[%emt 0:00:10]} 36. Bxd5 {[%emt 0:01:15]} (36. Rg4 $142 {Rxg5 would be deadly.} Rxg4 37. Bxg4) 36... f5 $2 {[%emt 0:00:10]} (36... Kd6 37. Bf7 (37. Bb7 e4 $16) 37... Rf5+ 38. Ke3 Rf1) 37. Rb4 {[%emt 0:01:14] Rb7+ is the strong threat. White is clearly winning.} f4 {[%emt 0:03:04]} 38. Rb7+ {[%emt 0:01:07][%mdl 64] Skewer} Kd6 {[%emt 0:00:05]} 39. h4 {[%emt 0:04:31]} Kxd5 {[%emt 0:01:52] Weighted Error Value: White=0.18 (very precise) /Black=0.51} 1-0